bitfinex/quotes_BTCUSD_20251025
["timestamp","ask_amount","ask_price","bid_price","bid_amount"]
[1761387012927,0.87317886,111540.0,111530.0,4.917e-05]
[1761387013372,1.21317886,111540.0,111530.0,4.917e-05]
[1761387015989,1.12335985,111540.0,111530.0,4.917e-05]
[1761387018325,0.78350783,111540.0,111530.0,4.917e-05]
[1761387018508,1.12335985,111540.0,111530.0,4.917e-05]
[1761387019147,1.10412222,111540.0,111530.0,4.917e-05]
[1761387028491,0.7642702,111540.0,111530.0,0.17937311]
[1761387029729,0.7612702,111540.0,111530.0,4.917e-05]
[1761387030131,0.7612702,111540.0,111530.0,0.00104917]
[1761387030736,0.772185,111540.0,111530.0,0.00104917]
[1761387033570,0.7612702,111540.0,111530.0,0.00104917]
[1761387033720,0.7612702,111540.0,111530.0,0.18037311]
[1761387034962,0.58196233,111540.0,111530.0,0.18037311]
[1761387035209,0.36696233,111540.0,111530.0,0.18037311]
[1761387035354,0.58184233,111540.0,111530.0,0.18037311]
[1761387036113,0.52444233,111540.0,111530.0,0.18037311]
[1761387036423,0.21492,111540.0,111530.0,0.18037311]
[1761387036852,0.21492,111540.0,111530.0,0.27019212]
[1761387037068,0.05744,111540.0,111530.0,0.27019212]
[1761387037309,0.21496,111540.0,111530.0,0.27933069]
[1761387037528,4e-05,111540.0,111530.0,0.27019212]
[1761387040435,0.17934787,111540.0,111530.0,0.27019212]
[1761387063399,0.51919989,111540.0,111530.0,0.09086818]
[1761387065215,0.51919989,111540.0,111530.0,0.00104917]
[1761387065388,0.53046903,111540.0,111530.0,0.00104917]
[1761387065799,0.55739063,111540.0,111530.0,0.00104917]
[1761387066730,0.89739063,111540.0,111530.0,0.00104917]
[1761387066966,0.9167069,111540.0,111530.0,0.00104917]
[1761387068753,1.34127168,111540.0,111530.0,0.00104917]
[1761387073440,1.39863168,111540.0,111530.0,0.00104917]
[1761387085127,1.39863168,111540.0,111530.0,4.917e-05]
[1761387085336,1.39863168,111540.0,111530.0,0.00104917]
[1761387089373,1.548715,111540.0,111530.0,0.00104917]
[1761387090569,1.549715,111540.0,111530.0,0.00104917]
[1761387090987,1.549715,111540.0,111530.0,4.917e-05]
[1761387091366,1.552715,111540.0,111530.0,4.917e-05]
[1761387093864,1.570665,111540.0,111530.0,4.917e-05]
[1761387094061,1.552715,111540.0,111530.0,4.917e-05]
[1761387094776,1.62037599,111540.0,111530.0,4.917e-05]
[1761387095181,1.61737599,111540.0,111530.0,4.917e-05]
[1761387095555,1.61837599,111540.0,111530.0,4.917e-05]
[1761387096141,1.61737599,111540.0,111530.0,4.917e-05]
[1761387112246,1.64948537,111540.0,111530.0,4.917e-05]
[1761387113840,1.66743537,111540.0,111530.0,4.917e-05]
[1761387114063,1.64948537,111540.0,111530.0,4.917e-05]
[1761387122805,1.62540334,111540.0,111530.0,4.917e-05]
[1761387126563,1.71522235,111540.0,111530.0,4.917e-05]
[1761387127983,2.09743075,111540.0,111530.0,4.917e-05]
[1761387128198,2.14560207,111540.0,111530.0,4.917e-05]
[1761387128669,2.11349269,111540.0,111530.0,4.917e-05]
[1761387130820,1.64675657,111540.0,111530.0,4.917e-05]
[1761387131418,1.71316406,111540.0,111530.0,4.917e-05]
[1761387132458,1.37321952,111540.0,111530.0,4.917e-05]
[1761387134120,1.14208849,111540.0,111530.0,4.917e-05]
[1761387134359,1.51841849,111540.0,111530.0,4.917e-05]
[1761387134559,1.47024717,111540.0,111530.0,4.917e-05]
[1761387139160,1.1677541,111540.0,111530.0,4.917e-05]
[1761387139373,1.19298764,111540.0,111530.0,4.917e-05]
[1761387139944,1.15680536,111540.0,111530.0,4.917e-05]
[1761387140925,0.81686082,111540.0,111530.0,4.917e-05]
[1761387141124,1.15680536,111540.0,111530.0,4.917e-05]
[1761387142823,1.13267942,111540.0,111530.0,4.917e-05]
[1761387143440,1.13167942,111540.0,111530.0,4.917e-05]
[1761387143587,1.13167942,111540.0,111530.0,0.00104917]
[1761387146006,0.75350414,111540.0,111530.0,0.00104917]
[1761387146889,0.59606414,111540.0,111530.0,0.18037311]
[1761387147034,0.75350414,111540.0,111530.0,0.18037311]
[1761387147257,0.73418787,111540.0,111530.0,0.18037311]
[1761387147467,0.55488,111540.0,111530.0,0.18037311]
[1761387147700,0.82400688,111540.0,111530.0,0.18037311]
[1761387148544,0.21488,111540.0,111530.0,0.27019212]
[1761387148752,0.05744,111540.0,111530.0,0.27019212]
[1761387148959,0.21488,111540.0,111530.0,0.27019212]
[1761387150005,0.21488,111540.0,111530.0,0.26919212]
[1761387150430,0.21488,111540.0,111530.0,0.27119212]
[1761387150630,0.15748,111540.0,111530.0,0.27119212]
[1761387156046,0.33678787,111540.0,111530.0,0.27119212]
[1761387156268,0.33678787,111540.0,111530.0,0.09186818]
[1761387156488,0.67673241,111540.0,111530.0,0.27119212]
[1761387156702,0.33678787,111540.0,111530.0,0.27119212]
[1761387156917,0.67673241,111540.0,111530.0,0.27119212]
[1761387157509,0.33678787,111540.0,111530.0,0.27119212]
[1761387158945,0.33678787,111540.0,111530.0,0.09186818]
[1761387159663,0.33678787,111540.0,111530.0,0.27119212]
[1761387162023,0.15748,111540.0,111530.0,0.27119212]
[1761387162449,0.33678787,111540.0,111530.0,0.27119212]
[1761387174440,0.33678787,111540.0,111530.0,0.09186818]
[1761387175103,0.33678787,111540.0,111530.0,0.27119212]
[1761387175313,0.15748,111540.0,111530.0,0.27119212]
[1761387176748,0.33678787,111540.0,111530.0,0.27119212]
[1761387178211,0.15748,111540.0,111530.0,0.27119212]
[1761387178531,0.33678787,111540.0,111530.0,0.27119212]
[1761387182080,0.67673241,111540.0,111530.0,0.27119212]
[1761387183475,0.33678787,111540.0,111530.0,0.27119212]
[1761387184500,0.33678787,111540.0,111530.0,0.09186818]
[1761387184723,0.76502724,111540.0,111530.0,0.00204917]
[1761387186855,0.79194836,111540.0,111530.0,0.00204917]
[1761387190591,0.84930836,111540.0,111530.0,0.00204917]
[1761387190850,1.6332061,111540.0,111530.0,0.00204917]
[1761387191070,1.66938838,111540.0,111530.0,0.00204917]
[1761387191784,1.66938838,111540.0,111530.0,4.917e-05]
[1761387192191,1.67038838,111540.0,111530.0,4.917e-05]
[1761387194188,1.76020739,111540.0,111530.0,4.917e-05]
[1761387198788,2.14247703,111540.0,111530.0,4.917e-05]
[1761387199003,1.78430771,111540.0,111530.0,4.917e-05]
[1761387199672,2.16657735,111540.0,111530.0,4.917e-05]
[1761387199903,2.21666112,111540.0,111530.0,4.917e-05]
[1761387200122,2.24076145,111540.0,111530.0,4.917e-05]
[1761387200342,2.22281145,111540.0,111530.0,4.917e-05]
[1761387201279,1.46427217,111540.0,111530.0,1e-08]
[1761387202381,2.1806108,111540.0,111530.0,1e-08]
[1761387202594,2.22881145,111540.0,111530.0,1e-08]
[1761387203236,2.1806108,111540.0,111530.0,1e-08]
[1761387204390,2.20667767,111540.0,111530.0,1e-08]
[1761387204597,0.17940437,111480.0,111470.0,0.00033762]
[1761387204796,1.07706563,111480.0,111470.0,0.00082882]
[1761387205142,1.05915401,111480.0,111470.0,0.00082882]
[1761387205279,1.08608898,111480.0,111470.0,0.00082882]
[1761387205886,1.08608898,111480.0,111470.0,0.00382882]
[1761387207344,0.70381934,111480.0,111470.0,0.00382882]
[1761387207599,1.08608898,111480.0,111470.0,0.00082882]
[1761387207805,1.08608898,111480.0,111470.0,0.00182882]
[1761387209760,0.70381934,111480.0,111470.0,0.00182882]
[1761387209893,1.08608898,111480.0,111470.0,0.00182882]
[1761387210513,0.70381934,111480.0,111470.0,0.00182882]
[1761387210721,1.46835862,111480.0,111470.0,0.00182882]
[1761387211801,0.70381934,111480.0,111470.0,0.00182882]
[1761387212055,1.55817763,111480.0,111470.0,0.00182882]
[1761387215097,1.55817763,111480.0,111470.0,0.00082882]
[1761387222062,0.79363835,111480.0,111470.0,0.00082882]
[1761387222280,1.55817763,111480.0,111470.0,0.00082882]
[1761387222804,1.68417892,111480.0,111470.0,0.00082882]
[1761387223379,2.08565487,111480.0,111470.0,0.00082882]
[1761387223580,2.10967914,111480.0,111470.0,0.00082882]
[1761387224196,2.1417115,111480.0,111470.0,0.00082882]
[1761387225138,2.1427115,111480.0,111470.0,0.00082882]
[1761387225352,2.16673577,111480.0,111470.0,0.00082882]
[1761387225561,2.17673576,111480.0,111470.0,0.00082882]
[1761387226188,1.79446612,111480.0,111470.0,0.00082882]
[1761387227239,1.98943377,111480.0,111470.0,0.00082882]
[1761387227398,1.62696084,111480.0,111470.0,0.00082882]
[1761387227596,1.63696083,111480.0,111470.0,0.00082882]
[1761387227805,1.62696084,111480.0,111470.0,0.00082882]
[1761387228009,2.03152083,111480.0,111470.0,0.00082882]
[1761387228733,2.03148083,111480.0,111470.0,0.00082882]
[1761387230562,1.63692083,111480.0,111470.0,0.00082882]
[1761387230782,2.03148083,111480.0,111470.0,0.00082882]
[1761387231233,2.02148084,111480.0,111470.0,0.00082882]
[1761387231781,2.03148083,111480.0,111470.0,0.00082882]
[1761387232466,1.6392112,111480.0,111470.0,0.00082882]
[1761387232679,1.36417329,111480.0,111470.0,0.00082882]
[1761387232901,1.69618107,111480.0,111470.0,0.00082882]
[1761387233115,1.35618107,111480.0,111470.0,0.00082882]
[1761387233341,1.38818814,111480.0,111470.0,0.00082882]
[1761387233577,1.81800715,111480.0,111470.0,0.00082882]
[1761387235508,1.78600008,111480.0,111470.0,0.00082882]
[1761387237969,1.78603148,111480.0,111470.0,0.00082882]
[1761387238326,1.81803855,111480.0,111470.0,0.00082882]
[1761387245960,1.84205789,111480.0,111470.0,0.00082882]
[1761387246406,1.79400935,111480.0,111470.0,0.00082882]
[1761387250346,1.84205789,111480.0,111470.0,0.00082882]
[1761387252779,1.75792143,111480.0,111470.0,0.00082882]
[1761387255090,1.73591435,111480.0,111470.0,0.00082882]
[1761387258357,1.72591436,111480.0,111470.0,0.00082882]
[1761387259079,1.73591435,111480.0,111470.0,0.00082882]
[1761387259469,1.72591436,111480.0,111470.0,0.00082882]
[1761387259628,1.75803098,111480.0,111470.0,0.00082882]
[1761387260919,1.72591436,111480.0,111470.0,0.00082882]
[1761387261143,1.75803264,111480.0,111470.0,0.00082882]
[1761387261382,1.7099841,111480.0,111470.0,0.00082882]
[1761387261600,1.15466269,111480.0,111470.0,0.00082882]
[1761387261817,1.57335383,111480.0,111470.0,0.00082882]
[1761387262111,1.91355524,111480.0,111470.0,0.00082882]
[1761387262984,1.57335383,111480.0,111470.0,0.00082882]
[1761387263211,1.54123555,111480.0,111470.0,0.00082882]
[1761387264595,1.88143696,111480.0,111470.0,0.00082882]
[1761387267496,0.17786336,111480.0,111470.0,0.18024929]
[1761387267790,0.15864,111480.0,111470.0,0.18024929]
[1761387268663,0.15864,111480.0,111470.0,0.2700683]
[1761387269408,0.15764,111480.0,111470.0,0.2700683]
[1761387270414,0.15764,111480.0,111470.0,0.2730683]
[1761387270622,0.17555162,111480.0,111470.0,0.2730683]
[1761387270835,0.7166654,111480.0,111470.0,0.00382882]
[1761387271088,0.69875378,111480.0,111470.0,0.00382882]
[1761387271287,0.49764,111480.0,111470.0,0.18324929]
[1761387271630,0.49764,111480.0,111470.0,0.2730683]
[1761387272875,0.49764,111480.0,111470.0,0.2700683]
[1761387273856,0.49764,111480.0,111470.0,0.2710683]
[1761387286347,0.67704437,111480.0,111470.0,0.2710683]
[1761387289188,1.01724578,111480.0,111470.0,0.2710683]
[1761387290462,0.83784141,111480.0,111470.0,0.2710683]
[1761387290676,0.83788141,111480.0,111470.0,0.2710683]
[1761387291500,0.67708437,111480.0,111470.0,0.2710683]
[1761387292568,1.01728578,111480.0,111470.0,0.2710683]
[1761387294532,1.01728578,111480.0,111470.0,0.09164783]
[1761387294793,1.04287213,111480.0,111470.0,0.00182882]
[1761387297337,1.0621487,111480.0,111470.0,0.00182882]
[1761387297732,0.72194729,111480.0,111470.0,0.00182882]
[1761387297941,1.0621487,111480.0,111470.0,0.00182882]
[1761387302708,1.0621487,111480.0,111470.0,0.00082882]
[1761387302961,1.0631487,111480.0,111470.0,0.00082882]
[1761387304933,0.53972094,111480.0,111470.0,0.2700683]
[1761387305152,0.15872,111480.0,111470.0,0.2700683]
[1761387305359,0.00104,111480.0,111470.0,0.2700683]
[1761387305566,0.00104,111480.0,111470.0,0.61026971]
[1761387305780,0.15872,111480.0,111470.0,0.2700683]
[1761387306204,0.15772,111480.0,111470.0,0.2700683]
[1761387306620,0.15772,111480.0,111470.0,0.2710683]
[1761387308342,4e-05,111480.0,111470.0,0.2710683]
[1761387310857,4e-05,111480.0,111470.0,0.77784596]
[1761387312121,4e-05,111480.0,111470.0,0.86122018]
[1761387312333,4e-05,111480.0,111470.0,0.86222018]
[1761387312545,0.00104,111480.0,111470.0,0.86922018]
[1761387312753,1e-08,111480.0,111470.0,0.83571038]
[1761387312959,1e-08,111480.0,111470.0,0.86163532]
[1761387313186,1e-08,111480.0,111470.0,0.86263532]
[1761387313395,0.44392,111520.0,111510.0,0.17935611]
[1761387313599,0.34,111520.0,111510.0,0.28711073]
[1761387313808,0.49772,111520.0,111510.0,0.26917512]
[1761387314691,0.49772,111520.0,111510.0,0.26930721]
[1761387314898,0.87994411,111520.0,111510.0,0.26930721]
[1761387315515,0.87994411,111520.0,111510.0,0.27030721]
[1761387315733,1.05928413,111520.0,111510.0,0.00113209]
[1761387315941,1.05928413,111520.0,111510.0,0.1804882]
[1761387318740,1.05928413,111520.0,111510.0,0.00113209]
[1761387319174,0.87998411,111520.0,111510.0,0.1804882]
[1761387319386,0.49776,111520.0,111510.0,0.1804882]
[1761387319599,0.87998411,111520.0,111510.0,0.1804882]
[1761387322038,0.49776,111520.0,111510.0,0.1804882]
[1761387322244,0.87998411,111520.0,111510.0,0.1804882]
[1761387322471,1.05932413,111520.0,111510.0,0.1804882]
[1761387329229,1.05932413,111520.0,111510.0,0.00113209]
[1761387329669,1.05932413,111520.0,111510.0,0.1804882]
[1761387331583,0.87998411,111520.0,111510.0,0.1804882]
[1761387332710,0.87998411,111520.0,111510.0,0.27030721]
[1761387332851,0.34,111520.0,111510.0,0.27030721]
[1761387333059,0.49784,111520.0,111510.0,0.27030721]
[1761387333269,0.88006411,111520.0,111510.0,0.27030721]
[1761387336707,0.49784,111520.0,111510.0,0.27030721]
[1761387337960,0.34,111520.0,111510.0,0.27030721]
[1761387338228,0.4978,111520.0,111510.0,0.27030721]
[1761387339491,0.88002411,111520.0,111510.0,0.27030721]
[1761387339907,0.4978,111520.0,111510.0,0.27030721]
[1761387340119,0.88002411,111520.0,111510.0,0.27030721]
[1761387348352,0.4978,111520.0,111510.0,0.27030721]
[1761387348531,0.88002411,111520.0,111510.0,0.27030721]
[1761387357539,0.4978,111520.0,111510.0,0.27030721]
[1761387357737,0.88002411,111520.0,111510.0,0.27030721]
[1761387364283,0.88006411,111520.0,111510.0,0.27030721]
[1761387366782,0.90698803,111520.0,111510.0,0.27030721]
[1761387366984,0.52476392,111520.0,111510.0,0.27030721]
[1761387367139,0.90698803,111520.0,111510.0,0.27030721]
[1761387373308,0.52476392,111520.0,111510.0,0.27030721]
[1761387373651,0.90698803,111520.0,111510.0,0.27030721]
[1761387375786,0.52476392,111520.0,111510.0,0.27030721]
[1761387375991,0.90698803,111520.0,111510.0,0.27030721]
[1761387376365,0.52476392,111520.0,111510.0,0.27030721]
[1761387376550,0.90698803,111520.0,111510.0,0.27030721]
[1761387376754,0.52476392,111520.0,111510.0,0.27030721]
[1761387383173,0.02696392,111520.0,111510.0,0.27030721]
[1761387383514,0.18452392,111520.0,111510.0,0.27030721]
[1761387384292,0.1576,111520.0,111510.0,0.61005613]
[1761387384513,4e-05,111520.0,111510.0,0.61005613]
[1761387384713,4e-05,111520.0,111510.0,0.27030721]
[1761387384983,4e-05,111520.0,111510.0,0.61005613]
[1761387385377,4e-05,111520.0,111510.0,0.60905613]
[1761387385603,4e-05,111520.0,111510.0,0.61405613]
[1761387386603,4e-05,111520.0,111510.0,0.61505613]
[1761387387012,4e-05,111520.0,111510.0,0.27530721]
[1761387399730,4e-05,111520.0,111510.0,0.61505613]
[1761387409969,4e-05,111520.0,111510.0,0.27530721]
[1761387410184,4e-05,111520.0,111510.0,0.61505613]
[1761387426134,4e-05,111520.0,111510.0,0.96505612]
[1761387426371,4e-05,111520.0,111510.0,1.02945738]
[1761387429985,4e-05,111520.0,111510.0,1.17915738]
[1761387435806,0.02686141,111540.0,111530.0,0.17932394]
[1761387436007,0.02686141,111540.0,111530.0,0.44455534]
[1761387436147,0.02686141,111540.0,111530.0,0.42662295]
[1761387437321,0.02686141,111540.0,111530.0,0.42762295]
[1761387438825,0.02686141,111540.0,111530.0,0.80964382]
[1761387444726,0.40888228,111540.0,111530.0,0.42762295]
[1761387444932,0.40888228,111540.0,111530.0,0.27014295]
[1761387447478,0.02686141,111540.0,111530.0,0.27014295]
[1761387447631,0.40888228,111540.0,111530.0,0.27014295]
[1761387463188,1.31021102,111540.0,111530.0,0.001]
[1761387463403,1.31021102,111540.0,111530.0,0.18032394]
[1761387465421,1.31021102,111540.0,111530.0,0.001]
[1761387467536,1.36757102,111540.0,111530.0,0.001]
[1761387472121,0.98555015,111540.0,111530.0,0.001]
[1761387472962,1.36757102,111540.0,111530.0,0.001]
[1761387475701,0.60352928,111540.0,111530.0,0.001]
[1761387475904,1.36757102,111540.0,111530.0,0.001]
[1761387477599,0.98555015,111540.0,111530.0,0.001]
[1761387478472,0.60352928,111540.0,111530.0,0.001]
[1761387478679,0.98555015,111540.0,111530.0,0.001]
[1761387479820,0.98555015,111540.0,111530.0,0.18032394]
[1761387481643,0.80624228,111540.0,111530.0,0.18032394]
[1761387482471,0.98555015,111540.0,111530.0,0.18032394]
[1761387487840,0.60352928,111540.0,111530.0,0.18032394]
[1761387488059,0.98555015,111540.0,111530.0,0.18032394]
[1761387491221,0.60352928,111540.0,111530.0,0.18032394]
[1761387491340,0.98555015,111540.0,111530.0,0.18032394]
[1761387492238,0.98555015,111540.0,111530.0,0.001]
[1761387492239,1.36757102,111540.0,111530.0,0.001]
[1761387492470,0.98555015,111540.0,111530.0,0.001]
[1761387495438,1.00486117,111540.0,111530.0,0.001]
[1761387499330,0.98555015,111540.0,111530.0,0.001]
[1761387499535,1.00486016,111540.0,111530.0,0.001]
[1761387500844,0.96254896,111540.0,111530.0,0.001]
[1761387502220,1.05236797,111540.0,111530.0,0.001]
[1761387509764,1.08855025,111540.0,111530.0,0.001]
[1761387509979,1.11264416,111540.0,111530.0,0.001]
[1761387510301,1.08855025,111540.0,111530.0,0.001]
[1761387510507,1.11264416,111540.0,111530.0,0.001]
[1761387511198,1.08855025,111540.0,111530.0,0.001]
[1761387511635,0.51934002,111520.0,111510.0,0.00013209]
[1761387511844,1.01648969,111520.0,111510.0,0.00013209]
[1761387512534,0.54626534,111520.0,111510.0,0.00013209]
[1761387512748,0.52436532,111520.0,111510.0,0.28724282]
[1761387512956,0.36692532,111520.0,111510.0,0.26930721]
[1761387513162,0.52436532,111520.0,111510.0,0.26930721]
[1761387513382,0.02692532,111520.0,111510.0,0.61001688]
[1761387513598,0.18436532,111520.0,111510.0,0.61001688]
[1761387514017,0.18436532,111520.0,111510.0,0.27030721]
[1761387514018,0.02692532,111520.0,111510.0,0.27030721]
[1761387514282,0.02692532,111520.0,111510.0,0.61001688]
[1761387514522,0.02692532,111520.0,111510.0,0.27030721]
[1761387516873,0.02692532,111520.0,111510.0,0.61001688]
[1761387517102,0.02692532,111520.0,111510.0,0.27030721]
[1761387521219,0.02692532,111520.0,111510.0,0.61001688]
[1761387521581,0.34,111540.0,111530.0,0.17930937]
[1761387521842,0.34,111540.0,111530.0,0.26912838]
[1761387521843,0.52435936,111540.0,111530.0,0.26912838]
[1761387522869,0.52435936,111540.0,111530.0,0.27012838]
[1761387531344,0.18435936,111540.0,111530.0,0.27012838]
[1761387534283,0.02691936,111540.0,111530.0,0.27012838]
[1761387534422,0.15744,111560.0,111550.0,0.17929179]
[1761387534618,0.49744,111560.0,111550.0,0.17929179]
[1761387534981,0.52435614,111560.0,111550.0,0.17929179]
[1761387535659,0.52435614,111560.0,111550.0,0.17942388]
[1761387538392,0.70363186,111560.0,111550.0,0.17942388]
[1761387539885,0.70363186,111560.0,111550.0,0.00013209]
[1761387539886,1.04334153,111560.0,111550.0,0.00013209]
[1761387540329,1.04334153,111560.0,111550.0,0.17942388]
[1761387540534,1.04334153,111560.0,111540.0,0.07871784]
[1761387540762,1.04348895,111560.0,111540.0,0.16853685]
[1761387540975,1.04348895,111560.0,111550.0,0.17929179]
[1761387541645,1.01657281,111560.0,111540.0,0.16853685]
[1761387542087,1.01657281,111560.0,111540.0,0.16953685]
[1761387542297,1.04348883,111560.0,111540.0,0.16853685]
[1761387542724,1.01657281,111560.0,111540.0,0.16853685]
[1761387542992,1.01657281,111560.0,111550.0,0.17929179]
[1761387543557,0.52446344,111560.0,111550.0,0.17929179]
[1761387543789,0.58182344,111560.0,111550.0,0.17929179]
[1761387544404,0.76109916,111560.0,111550.0,0.17929179]
[1761387545374,0.76417457,111560.0,111550.0,0.17929179]
[1761387545736,0.58489885,111560.0,111550.0,0.17929179]
[1761387546519,0.52753885,111560.0,111550.0,0.17929179]
[1761387547752,0.37013885,111560.0,111550.0,0.17929179]
[1761387547971,0.52753885,111560.0,111550.0,0.17929179]
[1761387549532,0.70681457,111560.0,111550.0,0.08981901]
[1761387549788,0.70681457,111560.0,111550.0,0.2691108]
[1761387551853,1.04652424,111560.0,111540.0,0.07871784]
[1761387552070,0.33970967,111550.0,111540.0,0.16853685]
[1761387552711,0.36662567,111550.0,111540.0,0.16853685]
[1761387553572,0.36662567,111550.0,111540.0,0.16953685]
[1761387553958,0.026916,111550.0,111540.0,0.16953685]
[1761387557061,0.20620779,111550.0,111540.0,0.27012688]
[1761387557261,0.20894609,111550.0,111540.0,0.27012688]
[1761387560085,0.54865576,111550.0,111540.0,0.27012688]
[1761387562847,0.20894609,111550.0,111540.0,0.27012688]
[1761387563047,0.59102121,111550.0,111540.0,0.27012688]
[1761387563677,0.41172942,111550.0,111540.0,0.27012688]
[1761387567081,0.59102121,111550.0,111540.0,0.27012688]
[1761387567257,0.20894609,111550.0,111540.0,0.27012688]
[1761387567499,0.59102121,111550.0,111540.0,0.27012688]
[1761387567908,0.59102121,111550.0,111540.0,0.09081901]
[1761387568516,0.59102121,111550.0,111540.0,0.27012688]
[1761387570812,0.20894609,111550.0,111540.0,0.27012688]
[1761387571021,0.59102121,111550.0,111540.0,0.27012688]
[1761387576741,0.59102121,111550.0,111540.0,0.09081901]
[1761387577193,0.59102121,111550.0,111540.0,0.27012688]
[1761387581806,0.20894609,111550.0,111540.0,0.27012688]
[1761387582002,0.59102121,111550.0,111540.0,0.27012688]
[1761387591016,0.41172942,111550.0,111540.0,0.27012688]
[1761387593078,0.1870543,111550.0,111540.0,0.652202]
[1761387593283,0.0296543,111550.0,111540.0,0.652202]
[1761387593507,0.1870543,111550.0,111540.0,0.652202]
[1761387593713,0.0296543,111550.0,111540.0,0.652202]
[1761387593897,0.1870543,111550.0,111540.0,0.652202]
[1761387594253,0.1870543,111550.0,111540.0,0.27012688]
[1761387597702,0.1870543,111550.0,111540.0,0.652202]
[1761387602249,0.0296543,111550.0,111540.0,0.652202]
[1761387602452,0.1870143,111550.0,111540.0,0.652202]
[1761387602882,0.0296543,111550.0,111540.0,0.27012688]
[1761387603095,0.0296543,111550.0,111540.0,0.652202]
[1761387604324,0.0296943,111550.0,111540.0,0.652202]
[1761387605499,0.0296943,111550.0,111540.0,1.19163712]
[1761387605718,0.0027783,111550.0,111540.0,1.19163712]
[1761387607178,0.0027783,111550.0,111540.0,1.19263712]
[1761387607623,0.0027783,111550.0,111540.0,1.19063712]
[1761387608028,0.0027783,111550.0,111540.0,1.19563712]
[1761387609178,0.0027783,111550.0,111540.0,1.19663712]
[1761387614141,0.0027783,111550.0,111540.0,1.58281939]
[1761387615632,0.00014742,111560.0,111550.0,0.5713669]
[1761387615816,0.00014742,111560.0,111550.0,0.71854591]
[1761387616285,0.00014742,111560.0,111550.0,1.09472819]
[1761387616910,0.00014742,111560.0,111550.0,1.09572819]
[1761387617348,0.02690716,111580.0,111570.0,0.17925965]
[1761387617565,0.02690716,111580.0,111570.0,0.82643974]
[1761387617752,0.72227512,111600.0,111590.0,0.17922752]
[1761387617966,0.72242267,111600.0,111590.0,0.26904653]
[1761387618185,0.74932851,111600.0,111590.0,0.26904653]
[1761387618602,0.36725339,111600.0,111590.0,0.26904653]
[1761387619039,0.36925339,111600.0,111590.0,0.26904653]
[1761387620060,0.75132851,111600.0,111590.0,0.26904653]
[1761387622725,0.36925339,111600.0,111590.0,0.26904653]
[1761387622924,0.75132851,111600.0,111590.0,0.26904653]
[1761387623129,0.75301404,111600.0,111590.0,0.26904653]
[1761387623334,0.37093892,111600.0,111590.0,0.26904653]
[1761387624113,0.37093892,111600.0,111590.0,0.65112165]
[1761387624114,0.03093892,111600.0,111590.0,0.65112165]
[1761387624331,0.03093892,111600.0,111590.0,0.26904653]
[1761387627331,0.02893892,111600.0,111590.0,0.26904653]
[1761387627539,0.03093892,111600.0,111590.0,0.26904653]
[1761387627745,0.03093892,111600.0,111590.0,0.42636653]
[1761387633938,0.03093892,111600.0,111590.0,0.26904653]
[1761387648215,0.03099173,111600.0,111590.0,0.26904653]
[1761387654023,0.03103173,111600.0,111590.0,0.26904653]
[1761387659987,0.38815867,111600.0,111590.0,0.26904653]
[1761387660194,0.37024705,111600.0,111590.0,0.26904653]
[1761387660571,0.03103173,111600.0,111590.0,0.26904653]
[1761387660779,0.04894335,111600.0,111590.0,0.26904653]
[1761387663338,0.38815867,111600.0,111590.0,0.26904653]
[1761387663551,0.37024705,111600.0,111590.0,0.26904653]
[1761387666753,0.03103173,111600.0,111590.0,0.26904653]
[1761387667159,0.18831173,111600.0,111590.0,0.26904653]
[1761387667559,0.03103173,111600.0,111590.0,0.26904653]
[1761387667785,0.18831173,111600.0,111590.0,0.26904653]
[1761387667996,0.03103173,111600.0,111590.0,0.26904653]
[1761387668205,0.18831173,111600.0,111590.0,0.26904653]
[1761387669347,0.03103173,111600.0,111590.0,0.26904653]
[1761387669580,0.18831173,111600.0,111590.0,0.26904653]
[1761387670316,0.03103173,111600.0,111590.0,0.26904653]
[1761387670506,0.18831173,111600.0,111590.0,0.26904653]
[1761387672314,0.03103173,111600.0,111590.0,0.26904653]
[1761387672496,0.18831173,111600.0,111590.0,0.26904653]
[1761387684610,0.70673851,111600.0,111590.0,0.08981901]
[1761387684828,0.57008104,111600.0,111590.0,0.26904653]
[1761387688004,0.7492925,111600.0,111590.0,0.26904653]
[1761387688244,0.7492925,111600.0,111580.0,0.17924349]
[1761387688245,0.17922752,111590.0,111580.0,0.17924349]
[1761387688465,0.63626845,111590.0,111580.0,0.2690625]
[1761387688681,0.95835683,111590.0,111580.0,0.08981901]
[1761387689102,0.98526486,111590.0,111580.0,0.08981901]
[1761387689753,0.98826486,111590.0,111580.0,0.08981901]
[1761387690204,0.98826486,111590.0,111570.0,0.18822263]
[1761387690420,0.55696093,111580.0,111570.0,0.27804164]
[1761387690642,0.53904931,111580.0,111570.0,0.27804164]
[1761387691112,0.74520236,111580.0,111570.0,0.27804164]
[1761387691318,1.08520236,111580.0,111570.0,0.26907866]
[1761387692209,1.08620236,111580.0,111570.0,0.26907866]
[1761387696924,1.08620236,111580.0,111570.0,0.08981901]
[1761387697696,1.08620236,111580.0,111570.0,0.26907866]
[1761387702310,1.08721386,111580.0,111570.0,0.26907866]
[1761387707785,0.17926152,111570.0,111550.0,0.18825637]
[1761387707982,0.17926152,111570.0,111560.0,0.26909237]
[1761387708206,0.33654152,111570.0,111560.0,0.26909237]
[1761387708646,0.36345363,111570.0,111560.0,0.26909237]
[1761387709068,0.74522294,111570.0,111560.0,0.26909237]
[1761387709280,0.74522294,111570.0,111560.0,0.27009237]
[1761387710487,0.74522294,111570.0,111560.0,0.26909237]
[1761387710687,0.74622294,111570.0,111560.0,0.26909237]
[1761387710867,0.74622294,111570.0,111560.0,0.27009237]
[1761387711266,0.74622294,111570.0,111560.0,0.26909237]
[1761387716174,0.74622294,111570.0,111560.0,0.08981901]
[1761387716405,1.12866665,111570.0,111560.0,0.08981901]
[1761387717266,0.74689734,111570.0,111560.0,0.08981901]
[1761387719512,0.74689734,111570.0,111560.0,0.26909473]
[1761387727427,0.36512803,111570.0,111560.0,0.08981901]
[1761387727641,0.74689734,111570.0,111560.0,0.08981901]
[1761387727854,0.17927572,111560.0,111550.0,0.17928677]
[1761387728066,0.39968093,111560.0,111550.0,0.26910578]
[1761387728284,0.38210654,111560.0,111550.0,0.26910578]
[1761387728506,0.00033723,111560.0,111550.0,0.26910578]
[1761387729516,0.00033723,111560.0,111550.0,0.27010578]
[1761387730357,0.00033723,111560.0,111550.0,0.27110578]
[1761387739263,0.57929388,111560.0,111550.0,0.27110578]
[1761387739407,0.56138226,111560.0,111550.0,0.27110578]
[1761387743690,0.58829739,111560.0,111550.0,0.27110578]
[1761387744327,0.02725236,111560.0,111550.0,0.27110578]
[1761387745404,0.20652808,111560.0,111550.0,0.27110578]
[1761387746267,0.58829739,111560.0,111550.0,0.27110578]
[1761387746897,0.20652808,111560.0,111550.0,0.27110578]
[1761387747041,0.02725236,111560.0,111550.0,0.27110578]
[1761387747519,0.20652808,111560.0,111550.0,0.27110578]
[1761387748329,0.02729236,111560.0,111550.0,0.27110578]
[1761387751142,0.00037723,111560.0,111550.0,0.27110578]
[1761387751583,0.15765723,111560.0,111550.0,0.27110578]
[1761387754079,0.00037723,111560.0,111550.0,0.27110578]